bitfinex-derivatives/quotes_BTCF0:USTF0_20241005
["timestamp","ask_amount","ask_price","bid_price","bid_amount"]
[1728091156951,0.186356,62102.0,62099.0,0.056358]
[1728091157153,0.186356,62102.0,62101.0,0.08029178]
[1728091157653,0.186356,62102.0,62101.0,0.20301197]
[1728091158349,0.186356,62102.0,62101.0,0.08029178]
[1728091158544,0.186356,62102.0,62101.0,0.2030121]
[1728091158940,0.187356,62102.0,62101.0,0.2040121]
[1728091159854,0.188356,62102.0,62101.0,0.001]
[1728091162543,0.188356,62102.0,62101.0,0.08129178]
[1728091163558,0.188356,62102.0,62101.0,0.001]
[1728091165461,0.058356,62102.0,62101.0,0.001]
[1728091165659,0.002,62102.0,62101.0,0.057356]
[1728091167951,0.002,62102.0,62101.0,0.091856]
[1728091171561,0.002,62102.0,62101.0,0.36394538]
[1728091173053,0.058356,62102.0,62101.0,0.36394538]
[1728091173261,0.058356,62102.0,62101.0,0.21457522]
[1728091174263,0.058356,62102.0,62101.0,0.18007522]
[1728091174457,0.058356,62102.0,62101.0,0.27657478]
[1728091175855,0.058356,62102.0,62101.0,0.18007522]
[1728091176362,0.058356,62102.0,62101.0,0.18007845]
[1728091178362,0.3608,62103.0,62101.0,0.32945187]
[1728091178562,0.3608,62102.0,62101.0,0.057356]
[1728091180157,0.3618,62102.0,62101.0,0.057356]
[1728091180354,0.3628,62102.0,62101.0,0.057356]
[1728091182355,0.419156,62102.0,62101.0,0.057356]
[1728091183966,0.058356,62102.0,62101.0,0.057356]
[1728091186056,0.002,62102.0,62101.0,0.057356]
[1728091186561,0.36236001,62103.0,62101.0,0.56169062]
[1728091186764,0.36236001,62103.0,62102.0,0.32844587]
[1728091186765,0.3608,62103.0,62102.0,0.32844587]
[1728091188265,0.417154,62104.0,62102.0,0.27208987]
[1728091188465,0.417154,62104.0,62103.0,0.32844487]
[1728091189469,0.418154,62104.0,62103.0,0.33144487]
[1728091189770,0.418154,62104.0,62103.0,0.27872573]
[1728091189771,0.419154,62104.0,62103.0,0.27872573]
[1728091190857,0.3628,62104.0,62103.0,0.27872573]
[1728091191060,0.3628,62104.0,62103.0,0.18207297]
[1728091191061,0.002,62104.0,62103.0,0.18207297]
[1728091192071,0.002,62104.0,62103.0,0.18407297]
[1728091192566,0.002,62104.0,62103.0,0.061355]
[1728091192765,0.002,62104.0,62103.0,0.18406797]
[1728091193768,0.002,62104.0,62103.0,0.33342612]
[1728091193963,0.002,62104.0,62103.0,0.061355]
[1728091196570,0.002,62104.0,62103.0,0.09071171]
[1728091199066,0.002,62104.0,62103.0,0.36278167]
[1728091200776,0.002,62104.0,62103.0,0.45278167]
[1728091201073,0.0037,62111.0,62110.0,0.056348]
[1728091201271,0.0037,62111.0,62103.0,0.62878837]
[1728091201272,0.55656983,62117.0,62108.0,0.14635]
[1728091201479,0.55862983,62117.0,62116.0,0.056343]
[1728091201668,0.55492983,62117.0,62116.0,0.056343]
[1728091202677,0.56092983,62117.0,62116.0,0.056343]
[1728091203065,0.56792983,62117.0,62116.0,0.056343]
[1728091204776,0.3738,62117.0,62116.0,0.056343]
[1728091206579,0.3738,62117.0,62116.0,0.092843]
[1728091206967,0.3738,62117.0,62116.0,0.12119059]
[1728091209383,0.94676,62117.0,62114.0,0.04816894]
[1728091209573,0.94676,62117.0,62107.0,0.04816894]
[1728091209574,0.056349,62109.0,62107.0,0.04816894]
[1728091209770,0.056349,62109.0,62103.0,0.06440353]
[1728091209771,0.4508,62108.0,62103.0,0.04816894]
[1728091209972,0.4508,62108.0,62099.0,0.05186894]
[1728091209973,0.056355,62103.0,62099.0,0.05186894]
[1728091210171,0.09,62100.0,62096.0,0.10452994]
[1728091210373,0.09,62100.0,62098.0,0.056359]
[1728091210781,0.09,62102.0,62098.0,0.056359]
[1728091211681,0.056355,62103.0,62098.0,0.056359]
[1728091212576,0.001,62102.0,62098.0,0.060359]
[1728091212777,0.001,62102.0,62099.0,0.17816894]
[1728091212976,0.060051,62107.0,62101.0,0.056356]
[1728091213186,0.001,62103.0,62101.0,0.056356]
[1728091213477,0.002,62103.0,62102.0,0.056356]
[1728091213679,0.001,62103.0,62102.0,0.056356]
[1728091214679,0.056352,62106.0,62103.0,0.056354]
[1728091215076,0.056352,62106.0,62104.0,0.056354]
[1728091215976,0.056352,62106.0,62101.0,0.007]
[1728091216176,0.056352,62106.0,62105.0,0.056353]
[1728091216378,0.057352,62106.0,62105.0,0.056353]
[1728091217086,0.058352,62106.0,62105.0,0.056353]
[1728091217680,0.057352,62106.0,62105.0,0.058353]
[1728091218280,0.057352,62106.0,62105.0,0.062353]
[1728091219788,0.001,62106.0,62105.0,0.062353]
[1728091224294,0.001,62106.0,62105.0,0.14285742]
[1728091224885,0.539433,62105.0,62104.0,0.04820096]
[1728091225098,0.539433,62105.0,62100.0,0.00010096]
[1728091225099,0.8636428,62105.0,62100.0,0.00010096]
[1728091225296,0.8636428,62105.0,62086.0,0.05637]
[1728091225297,0.3608,62101.0,62093.0,0.0037]
[1728091225590,0.186363,62094.0,62093.0,0.0037]
[1728091225791,0.669523,62094.0,62093.0,0.0037]
[1728091225998,1.269523,62094.0,62093.0,0.0037]
[1728091226393,1.269523,62094.0,62093.0,0.0067]
[1728091226803,1.269523,62094.0,62093.0,0.0077]
[1728091229602,1.29875226,62094.0,62093.0,0.0077]
[1728091232593,0.69875226,62094.0,62093.0,0.0077]
[1728091233609,1.29875226,62094.0,62093.0,0.0077]
[1728091234395,0.21559226,62094.0,62093.0,0.0077]
[1728091234597,0.08559226,62094.0,62093.0,0.0077]
[1728091234798,0.04529381,62094.0,62093.0,0.0077]
[1728091234998,0.02922926,62094.0,62093.0,0.0077]
[1728091235204,0.13,62095.0,62093.0,0.0077]
[1728091235401,0.056363,62094.0,62093.0,0.0077]
[1728091237302,0.417163,62094.0,62093.0,0.0077]
[1728091245421,0.3608,62100.0,62093.0,0.1377]
[1728091245611,0.246,62100.0,62099.0,0.056358]
[1728091246017,0.1886,62100.0,62099.0,0.056358]
[1728091246525,0.244957,62100.0,62099.0,0.056358]
[1728091246719,0.244957,62100.0,62099.0,0.12057916]
[1728091247417,0.244957,62100.0,62099.0,0.056358]
[1728091248137,0.248957,62100.0,62099.0,0.056358]
[1728091248642,0.060357,62100.0,62099.0,0.056358]
[1728091249031,0.065357,62100.0,62099.0,0.056358]
[1728091249233,0.009,62100.0,62099.0,0.056358]
[1728091249544,0.065357,62100.0,62099.0,0.056358]
[1728091253641,0.426157,62100.0,62099.0,0.056358]
[1728091254333,0.426157,62100.0,62099.0,0.17909414]
[1728091254539,0.53335812,62100.0,62099.0,0.056358]
[1728091254739,0.53335812,62100.0,62092.0,0.0754]
[1728091254932,0.056364,62093.0,62092.0,0.131764]
[1728091255137,0.10580047,62093.0,62092.0,0.131764]
[1728091256237,0.10580047,62093.0,62092.0,0.0754]
[1728091256939,0.10580047,62093.0,62092.0,0.0764]
[1728091257438,0.10580047,62093.0,62092.0,0.0754]
[1728091257745,0.10580047,62093.0,62092.0,0.0764]
[1728091258941,0.10580047,62093.0,62092.0,0.001]
[1728091258942,0.10580138,62093.0,62092.0,0.001]
[1728091259947,0.10580173,62093.0,62092.0,0.001]
[1728091261541,0.056364,62093.0,62092.0,0.12374047]
[1728091263138,0.056364,62093.0,62092.0,0.12374046]
[1728091263541,0.146364,62093.0,62092.0,0.12374046]
[1728091268838,0.056364,62093.0,62092.0,0.12374046]
[1728091269047,0.146364,62093.0,62092.0,0.12374046]
[1728091269347,0.146364,62093.0,62092.0,0.18010546]
[1728091269548,0.19580441,62093.0,62092.0,0.057365]
[1728091271553,0.19580441,62093.0,62092.0,0.001]
[1728091271554,0.22492718,62093.0,62092.0,0.001]
[1728091272554,0.17548677,62093.0,62092.0,0.001]
[1728091273849,0.08548677,62093.0,62092.0,0.001]
[1728091274153,0.17548677,62093.0,62092.0,0.001]
[1728091274548,0.53628677,62093.0,62092.0,0.001]
[1728091274749,0.585728,62093.0,62092.0,0.001]
[1728091276550,0.53628677,62093.0,62092.0,0.12374952]
[1728091279755,0.53628677,62093.0,62092.0,0.12375094]
[1728091283953,0.53628677,62093.0,62092.0,0.001]
[1728091286566,0.53628677,62093.0,62092.0,0.12374993]
[1728091289662,0.53628677,62093.0,62092.0,0.001]
[1728091291561,0.64349903,62093.0,62092.0,0.001]
[1728091292963,0.28269903,62093.0,62092.0,0.001]
[1728091295659,0.10721226,62093.0,62092.0,0.147365]
[1728091295867,0.04944093,62093.0,62092.0,0.057365]
[1728091298568,0.03358693,62093.0,62092.0,0.32949763]
[1728091298869,0.35409188,62094.0,62093.0,0.056364]
[1728091299072,0.44409188,62094.0,62093.0,0.32849663]
[1728091299967,0.44409188,62094.0,62093.0,0.32949663]
[1728091300271,0.50045488,62094.0,62093.0,0.32949663]
[1728091300670,0.50045488,62094.0,62093.0,0.27672532]
[1728091301363,0.50045488,62094.0,62093.0,0.18010273]
[1728091301871,0.50045488,62094.0,62093.0,0.12373873]
[1728091304475,0.50045488,62094.0,62093.0,0.001]
[1728091304772,0.50045488,62094.0,62093.0,0.12374954]
[1728091306774,0.6076696,62094.0,62093.0,0.001]
[1728091309868,0.25357772,62094.0,62093.0,0.001]
[1728091310063,0.19580506,62094.0,62093.0,0.001]
[1728091310272,0.55660506,62094.0,62093.0,0.001]
[1728091310476,0.61437772,62094.0,62093.0,0.001]
[1728091311074,0.55660506,62094.0,62093.0,0.001]
[1728091311571,0.61437563,62094.0,62093.0,0.001]
[1728091313477,0.25357563,62094.0,62093.0,0.001]
[1728091313673,0.507163,62094.0,62093.0,0.12374915]
[1728091314577,0.146363,62094.0,62093.0,0.12374915]
[1728091315081,0.056363,62094.0,62093.0,0.12374915]
[1728091315389,0.146363,62094.0,62093.0,0.12374915]
[1728091316475,0.146363,62094.0,62093.0,0.22037174]
[1728091317075,0.056363,62094.0,62093.0,0.22037174]
[1728091317276,0.146363,62094.0,62093.0,0.22037174]
[1728091318874,0.146363,62094.0,62093.0,0.22037222]
[1728091319078,0.146363,62094.0,62093.0,0.22036493]
[1728091319472,0.146363,62094.0,62093.0,0.22036461]
[1728091320186,0.146363,62094.0,62093.0,0.12374186]
[1728091320789,0.146363,62094.0,62093.0,0.2203618]
[1728091321586,0.146363,62094.0,62093.0,0.22036139]
[1728091321787,0.146363,62094.0,62093.0,0.06541404]
[1728091322990,0.146363,62094.0,62093.0,0.057364]
[1728091322991,0.056363,62094.0,62093.0,0.057364]
[1728091324692,0.146363,62094.0,62093.0,0.057364]
[1728091325782,0.146363,62094.0,62093.0,0.001]
[1728091328691,0.19580046,62094.0,62093.0,0.001]
[1728091332283,0.10580046,62094.0,62093.0,0.001]
[1728091332486,0.19580046,62094.0,62093.0,0.001]
[1728091334891,0.10580046,62094.0,62093.0,0.001]
[1728091335110,0.10580046,62094.0,62093.0,0.057364]
[1728091336697,0.056363,62094.0,62093.0,0.057364]
[1728091339095,0.3608,62098.0,62097.0,0.05636]
[1728091340502,0.3628,62098.0,62097.0,0.05636]
[1728091341804,0.3658,62098.0,62097.0,0.05636]
[1728091342803,0.422159,62098.0,62097.0,0.05636]
[1728091343795,0.422159,62098.0,62097.0,0.05072401]
[1728091343796,0.59545315,62098.0,62097.0,0.05072401]
[1728091344805,0.23465315,62098.0,62097.0,0.05072401]
[1728091346202,0.17829415,62098.0,62097.0,0.05072401]
[1728091347411,0.17829414,62098.0,62097.0,0.05072401]
[1728091347907,0.23465314,62098.0,62097.0,0.05072401]
[1728091348710,0.23465314,62098.0,62097.0,0.04565161]
[1728091351709,0.11079322,62098.0,62097.0,0.04565161]
[1728091352011,0.061359,62098.0,62097.0,0.04565161]
[1728091358815,0.16855785,62098.0,62097.0,0.04565161]
[1728091363814,0.42578743,62098.0,62097.0,0.04565161]
[1728091366220,0.16855785,62098.0,62097.0,0.04565161]
[1728091366916,0.061359,62098.0,62097.0,0.04565161]
[1728091367715,0.005,62098.0,62097.0,0.04565161]
[1728091373914,0.0544343,62098.0,62097.0,0.04565161]
[1728091376221,0.1107933,62098.0,62097.0,0.04565161]
[1728091377215,0.11079332,62098.0,62097.0,0.04565161]
[1728091379109,0.11079334,62098.0,62097.0,0.04565161]
[1728091380917,0.061359,62098.0,62097.0,0.04565161]
[1728091381128,0.11079352,62098.0,62097.0,0.04565161]
[1728091381927,0.11079352,62098.0,62097.0,0.04108645]
[1728091381928,0.23465025,62098.0,62097.0,0.04108645]
[1728091384730,0.23465025,62098.0,62097.0,0.03416892]
[1728091386127,0.056362,62095.0,62094.0,0.0767]
[1728091386439,0.22965325,62095.0,62094.0,0.133063]
[1728091386816,0.22965325,62095.0,62094.0,0.11975671]
[1728091388430,0.22965325,62095.0,62094.0,0.056363]
[1728091388932,0.056362,62095.0,62094.0,0.056363]
[1728091395231,0.056364,62093.0,62092.0,0.3608]
[1728091395531,0.056364,62093.0,62092.0,0.417165]
[1728091395735,0.056364,62093.0,62092.0,0.3608]
[1728091396336,0.056364,62093.0,62092.0,0.3618]
[1728091396938,0.22965944,62093.0,62092.0,0.3618]
[1728091397433,0.22965944,62093.0,62092.0,0.001]
[1728091397939,0.16356478,62093.0,62092.0,0.001]
[1728091400134,0.37257701,62093.0,62092.0,0.001]
[1728091400636,0.16356771,62093.0,62092.0,0.001]
[1728091400828,0.19299401,62093.0,62092.0,0.001]
[1728091402340,0.19299401,62093.0,62088.0,0.056368]
[1728091402341,0.20272467,62093.0,62087.0,0.0408]
[1728091402540,0.146368,62089.0,62088.0,0.056368]
[1728091402840,0.31966637,62089.0,62088.0,0.056368]
[1728091403937,0.147368,62089.0,62088.0,0.056368]
[1728091404139,0.091,62089.0,62087.0,0.0408]
[1728091404342,0.056368,62088.0,62087.0,0.0408]
[1728091405445,0.057368,62088.0,62087.0,0.0408]
[1728091405638,0.057368,62088.0,62086.0,0.0398]
[1728091405639,0.056369,62087.0,62086.0,0.0398]
[1728091406636,0.056369,62087.0,62086.0,0.09617]
[1728091407338,0.057369,62087.0,62086.0,0.09617]
[1728091410147,0.058369,62087.0,62086.0,0.09617]
[1728091419259,0.11614178,62087.0,62086.0,0.09617]
[1728091420954,0.16558397,62087.0,62086.0,0.09617]
[1728091426068,0.11614178,62087.0,62086.0,0.09617]
[1728091426968,0.058369,62087.0,62086.0,0.09617]
[1728091428667,0.148369,62087.0,62086.0,0.09617]
[1728091428870,0.058369,62087.0,62086.0,0.09617]
[1728091429063,0.148369,62087.0,62086.0,0.09617]
[1728091433369,0.002,62087.0,62086.0,0.09617]
[1728091434070,0.10920596,62087.0,62086.0,0.09617]
[1728091434263,0.0112,62098.0,62095.0,0.056362]
[1728091434465,0.146361,62096.0,62095.0,0.056362]
[1728091434663,0.40342504,62096.0,62095.0,0.056362]
[1728091435460,0.17573014,62096.0,62095.0,0.056362]
[1728091436059,0.17573014,62096.0,62095.0,0.057362]
[1728091436573,0.17673014,62096.0,62095.0,0.057362]
[1728091436868,0.17673014,62096.0,62095.0,0.001]
[1728091437069,0.12036914,62096.0,62093.0,0.03416542]
[1728091437275,0.056363,62094.0,62093.0,0.03416542]
[1728091437572,0.11413073,62094.0,62093.0,0.03416542]
[1728091438160,0.11413073,62094.0,62093.0,0.03516542]
[1728091439674,0.11413073,62094.0,62093.0,0.03416542]
[1728091439974,0.11413073,62094.0,62093.0,0.03516542]
[1728091442270,0.056363,62094.0,62093.0,0.03516542]
[1728091450585,0.056363,62094.0,62093.0,0.001]
[1728091450586,0.11413091,62094.0,62093.0,0.001]
[1728091455478,0.20413091,62094.0,62093.0,0.001]
[1728091456785,0.146363,62094.0,62093.0,0.001]
[1728091459594,0.056363,62094.0,62093.0,0.001]
[1728091459790,0.146363,62094.0,62093.0,0.001]
[1728091470103,0.146363,62094.0,62093.0,0.057364]
[1728091470294,0.02936914,62096.0,62095.0,0.056362]
[1728091470494,0.056361,62096.0,62095.0,0.056362]
[1728091471700,0.11412743,62096.0,62095.0,0.056362]
[1728091472097,0.11512743,62096.0,62095.0,0.056362]
[1728091472402,0.37219147,62096.0,62095.0,0.056362]
[1728091473198,0.31583047,62096.0,62095.0,0.056362]
[1728091473405,0.39183599,62102.0,62101.0,0.056356]
[1728091473699,0.44851771,62102.0,62101.0,0.146356]
[1728091474900,0.44851771,62102.0,62101.0,0.507156]
[1728091474901,0.46151771,62102.0,62101.0,0.507156]
[1728091475295,0.46151771,62102.0,62101.0,1.590236]
[1728091478801,0.40375599,62102.0,62101.0,1.590236]
[1728091479700,0.40375599,62102.0,62101.0,0.990236]
[1728091480307,0.40375599,62102.0,62101.0,1.01878641]
[1728091482002,0.40375599,62102.0,62101.0,0.53570641]
[1728091482304,0.40375599,62102.0,62101.0,1.01878641]
[1728091482508,0.013,62102.0,62101.0,1.61878641]
[1728091483104,0.0037,62109.0,62108.0,0.05635]
[1728091483398,0.060043,62116.0,62114.0,0.056344]
[1728091483604,0.056343,62116.0,62115.0,0.09]
[1728091484796,0.056343,62116.0,62115.0,0.146344]
[1728091485000,0.070343,62116.0,62115.0,0.146344]
[1728091486114,0.068343,62116.0,62115.0,0.146344]
[1728091486409,0.082343,62116.0,62115.0,0.147344]
[1728091486914,0.2061675,62116.0,62115.0,0.08480904]
[1728091487121,0.2041675,62116.0,62115.0,0.08480904]
[1728091489517,0.08174868,62116.0,62115.0,0.08480904]
[1728091489708,0.1478245,62116.0,62115.0,0.08480904]
[1728091490110,0.08174868,62116.0,62115.0,0.08480904]
[1728091491309,0.08174868,62116.0,62115.0,0.057344]
[1728091491509,0.13809168,62116.0,62115.0,0.091]
[1728091491710,0.13809168,62116.0,62115.0,0.001]
[1728091491911,0.08174868,62116.0,62115.0,0.147344]
[1728091492211,0.024,62116.0,62115.0,0.508144]
[1728091493006,0.1478245,62116.0,62115.0,0.3608]
[1728091493205,0.1478245,62116.0,62115.0,0.507144]
[1728091493513,0.19724157,62116.0,62115.0,0.507144]
[1728091493908,0.1478245,62116.0,62115.0,0.507144]
[1728091494923,0.024,62116.0,62115.0,0.507144]
[1728091499715,0.024,62116.0,62115.0,0.53571166]
[1728091500707,0.024,62116.0,62115.0,0.507144]
[1728091502012,0.024,62116.0,62115.0,0.056344]
[1728091502013,0.27856489,62116.0,62115.0,0.056344]
[1728091502421,0.39706489,62116.0,62115.0,0.056344]
[1728091504216,0.75786489,62116.0,62115.0,0.056344]
[1728091506016,0.75786489,62116.0,62115.0,0.03836882]
[1728091507021,0.75786489,62116.0,62103.0,0.3608]
[1728091507222,0.19822189,62115.0,62114.0,0.056345]
[1728091508322,0.19822189,62115.0,62104.0,0.02879099]
[1728091508623,0.19822189,62115.0,62103.0,0.3608]
[1728091508624,0.14635,62109.0,62108.0,0.05635]
[1728091509020,0.27016892,62109.0,62108.0,0.05635]
[1728091509722,0.27016892,62109.0,62103.0,0.4508]
[1728091509723,0.056353,62106.0,62105.0,0.056353]
[1728091509924,0.146353,62106.0,62103.0,0.3608]
[1728091510124,0.1197,62105.0,62101.0,0.056356]
[1728091510312,0.056356,62102.0,62101.0,0.056356]
[1728091510513,0.1197,62105.0,62097.0,0.09]
[1728091510514,0.056357,62101.0,62097.0,0.09]
[1728091510724,0.056357,62101.0,62098.0,0.056359]
[1728091510928,0.09,62103.0,62098.0,0.056359]
[1728091511224,0.09,62103.0,62090.0,0.68624]
[1728091511225,0.056357,62100.0,62099.0,0.056358]
[1728091512313,0.417157,62100.0,62099.0,0.056358]
[1728091512517,0.418157,62100.0,62099.0,0.061358]
[1728091512918,0.418157,62100.0,62099.0,0.065358]
[1728091513514,0.057357,62100.0,62099.0,0.065358]
[1728091514528,0.001,62100.0,62099.0,0.065358]
[1728091530739,0.057357,62100.0,62099.0,0.009]
[1728091533043,0.056358,62099.0,62084.0,0.3608]
[1728091533249,0.146371,62085.0,62084.0,0.417172]
[1728091534235,0.146371,62085.0,62084.0,0.425172]
[1728091534236,0.056371,62085.0,62084.0,0.425172]
[1728091534741,0.057371,62085.0,62084.0,0.432172]
[1728091535136,0.058371,62085.0,62084.0,0.432172]
[1728091535537,0.057371,62085.0,62084.0,0.064372]
[1728091535731,0.057371,62085.0,62084.0,0.063372]
[1728091535932,0.058371,62085.0,62084.0,0.071372]
[1728091537337,0.002,62085.0,62084.0,0.071372]
[1728091550352,0.002,62085.0,62084.0,0.015]
[1728091550654,0.058371,62085.0,62084.0,0.015]
[1728091553948,0.419171,62085.0,62084.0,0.015]
[1728091561753,0.47694557,62085.0,62084.0,0.015]
[1728091563166,0.42057457,62085.0,62084.0,0.015]
[1728091563353,0.42057457,62085.0,62084.0,0.071372]
[1728091563962,0.47694557,62085.0,62084.0,0.071372]
[1728091565170,0.56694557,62085.0,62084.0,0.015]
[1728091566758,0.20614557,62085.0,62084.0,0.015]
[1728091566965,0.509171,62085.0,62084.0,0.015]
[1728091567166,0.56694557,62085.0,62084.0,0.015]
[1728091567861,0.20614557,62085.0,62084.0,0.015]
[1728091568057,0.509171,62085.0,62084.0,0.015]
[1728091568363,0.56694557,62085.0,62084.0,0.015]
[1728091569567,0.47694557,62085.0,62084.0,0.015]
[1728091569867,0.47694557,62085.0,62084.0,0.07932992]
[1728091569868,0.419171,62085.0,62084.0,0.07932992]
[1728091570272,0.3628,62085.0,62084.0,0.071372]
[1728091570563,0.3628,62085.0,62084.0,0.27453337]
[1728091570766,0.3628,62085.0,62084.0,0.23682097]
[1728091571467,0.3628,62085.0,62084.0,0.31736264]
[1728091572571,0.3628,62085.0,62084.0,0.114072]
[1728091573463,0.419171,62085.0,62084.0,0.114072]
[1728091574370,0.419171,62085.0,62084.0,0.071372]
[1728091576566,0.058371,62085.0,62084.0,0.071372]
[1728091576970,0.11614475,62085.0,62084.0,0.071372]
[1728091580872,0.05977375,62085.0,62084.0,0.071372]
[1728091582275,0.05977375,62085.0,62084.0,0.161372]
[1728091584670,0.002,62085.0,62084.0,0.161372]
[1728091584983,0.002,62085.0,62084.0,0.36466202]
[1728091586786,0.002,62085.0,62084.0,0.161372]
[1728091587074,0.002,62085.0,62084.0,0.071372]
[1728091589584,0.092,62085.0,62084.0,0.015]
[1728091589771,0.509171,62085.0,62084.0,0.002]
[1728091589970,0.509171,62085.0,62079.0,0.04832755]
[1728091589971,0.056376,62080.0,62079.0,0.04832755]
[1728091590287,0.056376,62079.0,62078.0,0.00084]
[1728091590589,0.056376,62079.0,62073.0,0.04832755]
[1728091590781,0.056381,62074.0,62073.0,0.04832755]
[1728091591285,0.0149,62081.0,62072.0,0.06443674]
[1728091591591,0.09,62082.0,62069.0,0.12294167]
[1728091591592,0.056377,62079.0,62078.0,0.002]
[1728091591887,0.056377,62079.0,62077.0,0.056378]
[1728091592471,0.056377,62078.0,62077.0,0.056378]
[1728091596096,0.11926984,62082.0,62071.0,0.0037]
[1728091596097,0.056381,62074.0,62072.0,0.056382]
[1728091596300,0.056381,62074.0,62073.0,0.056382]
[1728091596504,0.056384,62071.0,62069.0,0.056385]
[1728091596904,0.056384,62071.0,62070.0,0.056385]
[1728091597802,0.057384,62071.0,62070.0,0.056385]
[1728091598110,0.058384,62071.0,62070.0,0.056385]
[1728091601802,0.419184,62071.0,62070.0,0.056385]
[1728091602002,0.058384,62071.0,62070.0,0.056385]
[1728091602311,0.419184,62071.0,62070.0,0.056385]
[1728091603512,0.058384,62071.0,62070.0,0.056385]
[1728091603714,0.419184,62071.0,62070.0,0.056385]
[1728091605823,0.058384,62071.0,62070.0,0.056385]
[1728091608526,0.056386,62069.0,62068.0,0.04830183]
[1728091608709,0.056388,62066.0,62064.0,0.04830183]
[1728091609018,0.132,62071.0,62062.0,0.48162774]
[1728091609019,0.05639,62064.0,62063.0,0.04830183]
[1728091609203,0.05639,62064.0,62063.0,0.056391]
[1728091610417,0.05739,62064.0,62063.0,0.056391]
[1728091610714,0.05839,62064.0,62063.0,0.056391]
[1728091613018,0.41919,62064.0,62063.0,0.056391]
[1728091614622,0.44865246,62064.0,62063.0,0.056391]
[1728091614917,0.14564649,62064.0,62063.0,0.056391]
[1728091615121,0.44865246,62064.0,62063.0,0.056391]
[1728091615418,0.47698403,62064.0,62063.0,0.056391]
[1728091616014,0.47598403,62064.0,62063.0,0.056391]
[1728091616209,0.47698403,62064.0,62063.0,0.056391]
[1728091619027,0.11618403,62064.0,62063.0,0.056391]
[1728091620816,0.41919,62064.0,62063.0,0.056391]
[1728091621012,0.47698403,62064.0,62063.0,0.056391]
[1728091621919,0.47698403,62064.0,62063.0,0.27225573]
[1728091621920,0.32243762,62064.0,62063.0,0.27225573]
[1728091622117,0.32243762,62064.0,62063.0,0.21934658]
[1728091622118,0.46882762,62064.0,62063.0,0.21934658]
[1728091622517,0.46882762,62064.0,62063.0,0.1227949]
[1728091625328,0.46882762,62064.0,62063.0,0.20326168]
[1728091625524,0.50802762,62064.0,62063.0,0.20327217]
[1728091625731,0.056391,62063.0,62062.0,0.08047727]
[1728091625930,0.146391,62063.0,62062.0,0.12280656]
[1728091626235,0.146391,62063.0,62062.0,0.20328645]
[1728091626433,0.146391,62063.0,62062.0,0.20328877]
[1728091627036,0.507191,62063.0,62062.0,0.20328877]
[1728091627236,0.508191,62063.0,62062.0,0.20328877]
[1728091627738,0.509191,62063.0,62062.0,0.20328877]
[1728091627938,0.056392,62062.0,62061.0,0.08047989]
[1728091628121,0.056392,62062.0,62061.0,0.20328874]
[1728091628437,0.056392,62062.0,62061.0,0.08047989]
[1728091629033,0.057392,62062.0,62061.0,0.08047989]
[1728091629426,1.141792,62062.0,62061.0,0.01517989]
[1728091629735,1.141792,62062.0,62050.0,0.0037]
[1728091629736,0.056394,62060.0,62059.0,0.06436974]
[1728091630030,0.056394,62060.0,62045.0,0.11257736]
[1728091630031,0.056401,62052.0,62051.0,0.0037]
[1728091630242,0.056401,62052.0,62049.0,0.060104]
[1728091630243,0.056402,62051.0,62049.0,0.056404]
[1728091630445,0.09,62050.0,62049.0,0.056404]
[1728091630736,0.056403,62050.0,62049.0,0.056404]
[1728091630927,0.056403,62050.0,62042.0,0.0037]
[1728091630928,0.056399,62055.0,62052.0,0.056401]
[1728091631129,0.056399,62055.0,62053.0,0.0422]
[1728091631535,0.056399,62055.0,62053.0,0.0986]
[1728091632237,0.056399,62054.0,62053.0,0.0986]
[1728091634734,0.057399,62054.0,62053.0,0.0986]
[1728091634949,0.001,62054.0,62053.0,0.0986]
[1728091636841,0.056394,62060.0,62053.0,0.31449036]
[1728091637134,0.056394,62060.0,62058.0,0.056395]
[1728091637339,0.056394,62060.0,62059.0,0.12280987]
[1728091637738,0.056394,62060.0,62059.0,0.17920487]
[1728091637944,0.057394,62060.0,62059.0,0.17920487]
[1728091638735,0.069394,62060.0,62059.0,0.26920487]
[1728091639340,0.070394,62060.0,62059.0,0.26920487]
[1728091639645,0.431194,62060.0,62059.0,0.17920487]
[1728091640439,0.431194,62060.0,62059.0,0.17920458]
[1728091644931,0.431194,62060.0,62059.0,0.056395]
[1728091646044,0.3748,62060.0,62059.0,0.056395]
[1728091646235,0.014,62060.0,62059.0,1.139795]
[1728091646539,0.014,62060.0,62059.0,1.28887235]
[1728091647640,0.014,62060.0,62059.0,0.68887235]
[1728091647838,0.014,62060.0,62059.0,1.28887235]
[1728091650441,0.014,62060.0,62059.0,0.20547235]
[1728091650647,0.014,62060.0,62059.0,1.28887235]
[1728091650842,0.014,62060.0,62059.0,0.80547235]
[1728091651145,0.014,62060.0,62059.0,1.28887235]
[1728091651344,0.014,62060.0,62059.0,0.20547235]
[1728091651648,0.014,62060.0,62059.0,1.28887235]
[1728091651845,0.014,62060.0,62059.0,0.20547235]
[1728091652045,0.014,62060.0,62059.0,0.141095]
[1728091652241,0.014,62060.0,62059.0,0.099395]
[1728091659951,0.014,62060.0,62059.0,0.16377235]
[1728091660758,0.014,62060.0,62059.0,0.099395]
[1728091662257,0.014,62060.0,62059.0,0.16379215]
[1728091663148,0.014,62060.0,62059.0,0.12079215]
[1728091664367,0.014,62060.0,62059.0,0.056395]
[1728091672971,0.070394,62060.0,62059.0,0.056395]
[1728091675359,0.160394,62060.0,62059.0,0.056395]
[1728091676377,0.070394,62060.0,62059.0,0.056395]
[1728091679172,0.014,62060.0,62059.0,0.056395]
[1728091680479,0.014,62060.0,62056.0,0.08047414]
[1728091680480,0.056396,62057.0,62056.0,0.056397]
[1728091680880,0.056396,62057.0,62051.0,0.09]
[1728091680881,0.0419,62059.0,62055.0,0.06448339]